bitfinex/quotes_SOLUSD_20260226
["timestamp","ask_amount","ask_price","bid_price","bid_amount"]
[1772070459348,3.3149526,88.619,88.58,10.52375337]
[1772070459541,3.3149526,88.617,88.581,3.44163827]
[1772070461222,3.3149526,88.615,88.582,11.28897518]
[1772070462721,3.3149526,88.615,88.582,14.73061345]
[1772070465137,3.3149526,88.615,88.583,3.44163827]
[1772070465844,0.2,88.62,88.591,3.44163827]
[1772070466026,0.2,88.62,88.582,39.51141314]
[1772070466027,0.2,88.64,88.611,3.44163827]
[1772070466228,3.3149526,88.639,88.612,11.28515325]
[1772070466841,3.3149526,88.639,88.6,10.52375337]
[1772070467037,50.20936763,88.64,88.585,11.28848585]
[1772070467038,3.3149526,88.619,88.585,11.28848585]
[1772070467840,3.3149526,88.619,88.57,21.81425805]
[1772070468255,39.49536211,88.618,88.57,21.81425805]
[1772070468554,3.3149526,88.617,88.58,10.52375337]
[1772070469739,3.3149526,88.617,88.571,3.44163827]
[1772070470624,3.3149526,88.615,88.573,3.44163827]
[1772070470824,3.3149526,88.609,88.57,10.52375337]
[1772070471035,3.3149526,88.599,88.56,10.52375337]
[1772070471225,3.3149526,88.599,88.56,13.96539164]
[1772070471426,3.3149526,88.599,88.56,10.52375337]
[1772070471637,3.3149526,88.599,88.561,3.44163827]
[1772070471820,3.3149526,88.608,88.57,10.52375337]
[1772070472022,3.3149526,88.608,88.581,3.44163827]
[1772070472437,3.3149526,88.619,88.581,3.44163827]
[1772070472631,3.3149526,88.599,88.56,10.52375337]
[1772070472821,39.49536211,88.618,88.551,3.44163827]
[1772070472822,3.3149526,88.589,88.551,3.44163827]
[1772070473027,3.3149526,88.589,88.56,10.52375337]
[1772070473342,3.3149526,88.589,88.561,3.44163827]
[1772070473643,3.3149526,88.609,88.561,3.44163827]
[1772070473944,3.3149526,88.589,88.545,11.29369247]
[1772070474249,3.3149526,88.579,88.541,11.29419915]
[1772070474441,3.3149526,88.569,88.533,3.44163827]
[1772070474644,5.36086188,88.611,88.535,3.44163827]
[1772070474645,3.3149526,88.567,88.535,3.44163827]
[1772070475520,3.3149526,88.567,88.534,11.29509566]
[1772070476835,3.3149526,88.567,88.537,3.36780041]
[1772070477026,3.41006966,88.572,88.537,3.36780041]
[1772070477544,3.41006966,88.572,88.54,10.52375337]
[1772070477752,3.41006966,88.572,88.541,3.36780041]
[1772070478332,3.41006966,88.572,88.536,11.29484051]
[1772070478739,10.52375337,88.57,88.536,11.29484051]
[1772070478946,3.41006966,88.569,88.536,11.29484051]
[1772070480332,3.41006966,88.582,88.541,3.36780041]
[1772070480538,3.41006966,88.582,88.551,3.36780041]
[1772070481237,3.41006966,88.591,88.561,3.36780041]
[1772070482239,3.41006966,88.6,88.571,3.36780041]
[1772070484760,11.28591743,88.606,88.573,3.36780041]
[1772070485053,3.41006966,88.608,88.573,3.36780041]
[1772070485256,14.6946522,88.617,88.581,3.36780041]
[1772070485452,3.41006966,88.617,88.591,3.36780041]
[1772070485660,11.28307704,88.629,88.591,3.36780041]
[1772070485830,3.41006966,88.628,88.6,13.89155378]
[1772070486031,3.41006966,88.628,88.601,3.36780041]
[1772070486248,3.41006966,88.628,88.59,10.52375337]
[1772070486755,3.41006966,88.619,88.58,10.52375337]
[1772070486954,3.41006966,88.609,88.566,11.29101461]
[1772070487247,3.41006966,88.609,88.566,14.65881502]
[1772070487457,3.41006966,88.609,88.567,3.36780041]
[1772070487655,3.41006966,88.599,88.55,13.89155378]
[1772070487841,3.41006966,88.599,88.553,3.69383402]
[1772070488043,3.41006966,88.599,88.571,3.36780041]
[1772070488758,3.41006966,88.599,88.57,10.52375337]
[1772070488759,3.41006966,88.615,88.573,3.36780041]
[1772070488960,3.41006966,88.615,88.581,3.36780041]
[1772070489142,3.41006966,88.615,88.58,10.52375337]
[1772070489143,3.41006966,88.609,88.568,11.29071139]
[1772070489460,3.41006966,88.579,88.54,13.89155378]
[1772070489645,3.41006966,88.579,88.541,11.29420268]
[1772070490633,3.41006966,88.579,88.535,3.69383402]
[1772070490837,10.52375337,88.57,88.532,3.36780041]
[1772070491037,3.41006966,88.569,88.532,14.66303792]
[1772070491458,3.41006966,88.569,88.533,3.36780041]
[1772070492853,3.41006966,88.569,88.535,3.36780041]
[1772070494460,11.29075964,88.568,88.537,3.36780041]
[1772070495660,3.41006966,88.576,88.541,3.36780041]
[1772070496358,3.41006966,88.584,88.551,3.36780041]
[1772070496658,3.41006966,88.583,88.552,11.29279971]
[1772070496845,3.41006966,88.583,88.553,3.36780041]
[1772070498174,11.28881226,88.584,88.555,3.36780041]
[1772070498549,11.28881226,88.584,88.529,62.2]
[1772070498550,3.41006966,88.579,88.541,11.29420268]
[1772070499458,3.41006966,88.579,88.533,11.29522094]
[1772070499660,3.41006966,88.569,88.533,11.29522094]
[1772070502070,3.41006966,88.568,88.534,3.36780041]
[1772070503361,3.41006966,88.568,88.53,10.5066538]
[1772070503960,3.41006966,88.566,88.53,10.5066538]
[1772070504368,3.41006966,88.566,88.531,11.29547841]
[1772070505075,3.41006966,88.566,88.532,3.36780041]
[1772070506380,3.27224952,88.564,88.52,13.84543338]
[1772070506578,3.27224952,88.559,88.52,13.84543338]
[1772070506880,3.27224952,88.559,88.521,3.33877958]
[1772070507680,3.27224952,88.557,88.522,11.29662682]
[1772070507865,3.27224952,88.557,88.523,3.33877958]
[1772070508480,3.27224952,88.565,88.531,3.33877958]
[1772070509876,3.27224952,88.565,88.533,3.33877958]
[1772070510178,14.56350462,88.565,88.533,3.33877958]
[1772070510559,3.27224952,88.564,88.533,3.33877958]
[1772070512070,3.27224952,88.564,88.535,3.41825108]
[1772070513764,14.62613311,88.563,88.535,3.41825108]
[1772070514965,3.33473603,88.562,88.535,3.41825108]
[1772070515181,3.33473603,88.562,88.521,3.41825108]
[1772070516464,11.29165208,88.561,88.522,3.41825108]
[1772070516667,3.33473603,88.56,88.522,3.41825108]
[1772070523369,7.25818523,88.56,88.522,3.41825108]
[1772070523572,3.33473603,88.558,88.523,14.71475029]
[1772070523994,3.33473603,88.558,88.524,3.41825108]
[1772070524970,3.33473603,88.565,88.531,3.41825108]
[1772070525471,3.33473603,88.559,88.527,11.29588275]
[1772070527500,3.33473603,88.557,88.527,11.29588275]
[1772070527704,3.33473603,88.557,88.528,3.41825108]
[1772070528098,3.33473603,88.557,88.531,3.41825108]
[1772070529488,3.33473603,88.563,88.533,3.41825108]
[1772070534099,3.33473603,88.561,88.533,3.41825108]
[1772070534296,3.33473603,88.561,88.534,11.29509566]
[1772070534509,3.33473603,88.561,88.535,3.41825108]
[1772070535601,3.33473603,88.559,88.535,3.41825108]
[1772070535911,3.33473603,88.559,88.516,90.44336166]
[1772070535912,3.33473603,88.559,88.52,3.9234492]
[1772070536082,3.33473603,88.559,88.52,7.49655231]
[1772070536406,3.33473603,88.559,88.521,3.57310311]
[1772070536828,3.39115579,88.566,88.541,3.57310311]
[1772070537606,3.39115579,88.566,88.535,3.57310311]
[1772070537816,3.39115579,88.564,88.535,3.57310311]
[1772070538109,3.39115579,88.564,88.531,11.29547841]
[1772070540290,3.39115579,88.562,88.532,3.57310311]
[1772070540505,11.29139708,88.563,88.532,3.57310311]
[1772070540706,56.43317498,88.601,88.521,39.53864054]
[1772070540707,3.39115579,88.589,88.551,3.57310311]
[1772070541007,39.50829109,88.589,88.551,3.57310311]
[1772070541205,3.39115579,88.569,88.531,3.57310311]
[1772070541993,3.39115579,88.569,88.524,3.69383402]
[1772070541994,3.39115579,88.579,88.541,3.57310311]
[1772070542493,3.39115579,88.577,88.543,3.57310311]
[1772070543112,3.39115579,88.581,88.551,3.57310311]
[1772070544295,3.39115579,88.579,88.533,3.57310311]
[1772070544490,49.07025457,88.6,88.531,11.29545279]
[1772070544491,11.29075964,88.568,88.531,11.29545279]
[1772070544696,3.39115579,88.567,88.531,11.29545279]
[1772070545896,3.39115579,88.565,88.528,3.57310311]
[1772070547694,3.39115579,88.565,88.531,3.57310311]
[1772070548592,3.39115579,88.563,88.531,3.57310311]
[1772070549714,3.39115579,88.563,88.533,3.57310311]
[1772070553011,11.29152458,88.562,88.533,3.57310311]
[1772070553194,3.39115579,88.561,88.533,3.57310311]
[1772070554398,3.39115579,88.561,88.535,3.57310311]
[1772070555116,3.39115579,88.574,88.541,3.57310311]
[1772070555327,3.39115579,88.574,88.536,11.29484051]
[1772070555328,3.39115579,88.574,88.55,3.92172767]
[1772070555620,3.39115579,88.572,88.55,3.92172767]
[1772070555918,3.39115579,88.572,88.55,7.49483078]
[1772070556223,3.39115579,88.578,88.551,3.57310311]
[1772070557414,3.39115579,88.578,88.552,14.86590282]
[1772070557794,3.39115579,88.578,88.553,3.57310311]
[1772070558397,3.39115579,88.591,88.561,3.57310311]
[1772070558598,3.39115579,88.608,88.571,3.57310311]
[1772070558816,3.39115579,88.608,88.57,3.92172767]
[1772070558817,3.39115579,88.608,88.581,3.57310311]
[1772070559197,3.39115579,88.608,88.574,3.57310311]
[1772070559401,3.39115579,88.606,88.561,11.29162156]
[1772070559614,3.39115579,88.599,88.561,11.29162156]
[1772070559815,3.39115579,88.599,88.562,3.57310311]
[1772070560823,3.39115579,88.597,88.562,3.57310311]
[1772070562428,3.39115579,88.597,88.571,3.57310311]
[1772070562608,3.39115579,88.604,88.571,3.57310311]
[1772070562808,3.39115579,88.604,88.583,3.57310311]
[1772070563329,3.39115579,88.604,88.58,3.92172767]
[1772070563524,11.28629956,88.603,88.581,3.57310311]
[1772070563705,3.39115579,88.602,88.581,3.57310311]
[1772070564408,3.39115579,88.616,88.591,3.57310311]
[1772070564741,3.39115579,88.616,88.58,3.92172767]
[1772070564909,39.49539064,88.618,88.578,3.57310311]
[1772070564910,3.39115579,88.614,88.578,3.57310311]
[1772070565232,3.39115579,88.614,88.58,7.49483078]
[1772070565814,3.39115579,88.614,88.59,3.92172767]
[1772070566019,3.39115579,88.614,88.587,3.41500583]
[1772070567417,3.39115579,88.614,88.59,3.92172767]
[1772070567617,3.29831864,88.627,88.6,3.92172767]
[1772070567932,3.29831864,88.627,88.59,7.3367335]
[1772070568438,3.29831864,88.627,88.591,3.41500583]
[1772070569932,3.92172767,88.62,88.58,3.92172767]
[1772070570130,3.29831864,88.609,88.571,3.41500583]
[1772070571025,3.29831864,88.609,88.562,3.41500583]
[1772070571327,3.29831864,88.609,88.561,11.29165208]
[1772070571328,3.29831864,88.609,88.571,3.41500583]
[1772070572125,3.39087076,88.607,88.571,14.70532341]
[1772070572314,3.39087076,88.607,88.571,3.41500583]
[1772070572518,3.39087076,88.589,88.55,3.92172767]
[1772070574516,3.39087076,88.587,88.551,11.29292723]
[1772070576340,3.39087076,88.592,88.57,3.92172767]
[1772070576826,3.39087076,88.592,88.56,3.92172767]
[1772070577033,3.39087076,88.592,88.561,1.75701784]
[1772070577421,3.39087076,88.592,88.57,3.92172767]
[1772070578716,3.39087076,88.59,88.57,3.92172767]
[1772070579626,32.128881,88.63,88.581,2.85405475]
[1772070579828,28.20715333,88.63,88.581,2.85405475]
[1772070580019,32.128881,88.63,88.581,2.85405475]
[1772070580227,32.128881,88.63,88.59,3.92172767]
[1772070580832,43.41174233,88.63,88.59,3.92172767]
[1772070581717,3.39087076,88.629,88.591,2.8573837]
[1772070582547,3.39087076,88.629,88.6,3.92172767]
[1772070585043,3.39087076,88.627,88.6,3.92172767]
[1772070587141,3.39087076,88.625,88.6,3.92172767]
[1772070591146,3.39087076,88.623,88.6,3.92172767]
[1772070591345,3.39087076,88.623,88.6,6.7945263]
[1772070591647,3.39087076,88.623,88.6,3.92172767]
[1772070593137,3.39087076,88.621,88.6,3.92172767]
[1772070594938,3.39087076,88.621,88.601,2.87716439]
[1772070595246,3.39087076,88.621,88.562,62.2]
[1772070595247,3.39087076,88.619,88.59,3.92172767]
[1772070595658,3.39087076,88.619,88.6,3.92172767]
[1772070596153,3.39087076,88.619,88.59,3.92172767]
[1772070596449,3.39087076,88.619,88.582,3.28681428]
[1772070597556,3.44732945,88.617,88.59,3.92172767]
[1772070597748,3.44732945,88.617,88.589,3.28681428]
[1772070598829,3.44732945,88.617,88.583,3.28681428]
[1772070599639,11.28464385,88.616,88.583,3.28681428]
[1772070599841,3.44732945,88.615,88.583,3.28681428]
[1772070600256,3.44732945,88.609,88.57,3.92172767]
[1772070600750,3.44732945,88.609,88.571,3.28681428]
[1772070600964,3.44732945,88.609,88.562,3.28681428]
[1772070601338,3.92172767,88.6,88.562,3.28681428]
[1772070601538,3.44732945,88.599,88.562,3.28681428]
[1772070601853,3.44732945,88.597,88.56,3.92172767]
[1772070602436,3.44732945,88.597,88.555,3.28681428]
[1772070603356,39.50427773,88.598,88.55,3.92172767]
[1772070603357,3.44732945,88.589,88.55,7.20854195]
[1772070603754,39.50873707,88.588,88.551,3.28681428]
[1772070604059,3.44732945,88.587,88.55,3.92172767]
[1772070605262,3.44732945,88.585,88.55,7.20854195]
[1772070605958,3.44732945,88.585,88.551,3.28681428]
[1772070606573,3.92172767,88.61,88.571,3.28681428]
[1772070606871,3.92172767,88.62,88.571,3.28681428]
[1772070607756,3.92172767,88.62,88.57,3.92172767]
[1772070607757,39.49491644,88.619,88.573,3.28681428]
[1772070607958,39.49491644,88.619,88.581,3.28681428]
[1772070608165,39.49491644,88.619,88.591,3.28681428]
[1772070608338,11.28426184,88.619,88.591,3.28681428]
[1772070609557,3.44732945,88.624,88.592,3.28681428]
[1772070609558,11.28375252,88.623,88.592,3.28681428]
[1772070610059,3.44732945,88.622,88.592,3.28681428]
[1772070611744,3.44732945,88.62,88.592,3.28681428]
[1772070613163,3.44732945,88.628,88.601,3.28681428]
[1772070615062,3.44732945,88.626,88.601,3.28681428]
[1772070616570,11.28349788,88.625,88.601,3.28681428]
[1772070617281,3.44732945,88.609,88.571,3.28681428]
[1772070617566,39.49224259,88.625,88.55,3.91970154]
[1772070617567,3.44732945,88.589,88.55,3.91970154]
[1772070618155,129.76022565,88.625,88.56,3.91970154]
[1772070618156,3.44732945,88.596,88.56,3.91970154]
[1772070618577,3.91970154,88.61,88.528,3.69383402]
[1772070618578,3.44732945,88.603,88.57,3.91970154]
[1772070619471,31.66197441,88.607,88.57,3.91970154]
[1772070619650,31.66197441,88.607,88.571,3.28681428]
[1772070621063,3.44732945,88.609,88.573,3.28681428]
[1772070622872,3.44732945,88.607,88.573,3.28681428]
[1772070623069,11.28566269,88.608,88.581,3.28681428]
[1772070624769,45.11070673,88.671,88.59,3.91970154]
[1772070624770,3.48236354,88.629,88.59,3.91970154]
[1772070624974,3.48236354,88.629,88.591,11.28782833]
[1772070625165,3.48236354,88.629,88.6,3.91970154]
[1772070625349,3.48236354,88.639,88.6,3.91970154]
[1772070625550,14.76407926,88.639,88.6,3.91970154]
[1772070625758,3.48236354,88.638,88.6,3.91970154]
[1772070627978,3.48236354,88.636,88.59,3.91970154]
[1772070628185,3.48236354,88.629,88.58,3.91970154]
[1772070628479,3.48236354,88.619,88.58,3.91970154]
[1772070629373,3.48236354,88.617,88.574,11.28995877]
[1772070630048,3.48236354,88.609,88.56,3.91970154]
[1772070630255,39.49536211,88.618,88.55,3.91970154]
[1772070630256,3.91970154,88.59,88.55,3.91970154]
[1772070630470,3.48236354,88.589,88.523,0.28432314]
[1772070630666,3.48236354,88.589,88.55,3.91970154]
[1772070631064,3.48236354,88.589,88.54,3.91970154]
[1772070631372,11.28821059,88.588,88.541,11.29420268]
[1772070631565,3.48236354,88.587,88.56,3.91970154]
[1772070632778,3.48236354,88.587,88.544,0.02190821]
[1772070633574,3.48236354,88.585,88.551,0.0239953]
[1772070634351,3.48236354,88.585,88.56,3.91970154]
[1772070634560,3.48236354,88.585,88.551,0.0239953]
[1772070637376,3.48236354,88.583,88.552,0.03204988]
[1772070639087,11.28872031,88.584,88.519,0.0359085]
[1772070639088,3.48236354,88.569,88.519,0.0359085]
[1772070639397,3.48236354,88.559,88.519,0.0359085]
[1772070639684,3.48236354,88.559,88.51,3.91970154]
[1772070639685,3.48236354,88.549,88.51,3.95561004]
[1772070639989,3.48236354,88.549,88.511,11.29803075]
[1772070640157,3.48236354,88.549,88.511,11.33585604]
[1772070640362,3.48236354,88.549,88.521,0.03782529]
[1772070640560,3.48236354,88.557,88.531,0.03782529]
[1772070640892,3.48236354,88.567,88.531,0.03782529]
[1772070643779,3.48236354,88.565,88.54,3.91970154]
[1772070644679,3.48236354,88.565,88.531,11.34069802]
[1772070644858,3.48236354,88.565,88.532,0.04521961]
[1772070646665,3.48236354,88.563,88.532,0.04521961]
[1772070649883,3.48236354,88.561,88.532,0.04521961]
[1772070653985,11.29152458,88.562,88.532,0.04521961]
[1772070653986,3.48236354,88.559,88.532,0.04521961]
[1772070656586,11.29177958,88.56,88.502,62.2]
[1772070656587,3.48236354,88.557,88.52,3.91970154]
[1772070656791,3.48236354,88.557,88.516,11.29729474]
[1772070657491,3.48236354,88.557,88.52,3.91970154]
[1772070657690,3.48236354,88.555,88.522,0.06280842]
[1772070658588,3.48236354,88.576,88.531,0.06244592]
[1772070658788,3.48236354,88.576,88.541,0.06244592]
[1772070658969,3.48236354,88.575,88.541,0.06244592]
[1772070659569,3.48236354,88.575,88.531,0.06209279]
[1772070660580,3.48236354,88.559,88.511,11.29803075]
[1772070660766,3.91970154,88.55,88.511,11.35982145]
[1772070660972,3.48236354,88.549,88.511,11.29803075]
[1772070661403,3.48236354,88.549,88.512,0.06146984]
[1772070661705,3.91970154,88.56,88.521,0.06146984]
[1772070661993,3.48236354,88.559,88.521,0.06146984]
[1772070662187,3.48236354,88.559,88.53,3.91970154]
[1772070663878,3.48236354,88.559,88.531,11.29547841]
[1772070665002,3.48236354,88.559,88.54,3.91970154]
[1772070665597,3.48236354,88.559,88.532,0.06055411]
[1772070665974,3.48236354,88.559,88.54,3.91970154]
[1772070668201,3.48236354,88.559,88.532,0.06055411]
[1772070669414,3.48236354,88.582,88.551,0.05900234]
[1772070670012,3.48236354,88.582,88.543,0.05867402]
[1772070670307,3.48236354,88.58,88.542,0.05867402]
[1772070671597,3.48236354,88.58,88.55,3.91970154]
[1772070671777,3.48236354,88.58,88.542,0.05867402]
[1772070673895,3.48236354,88.578,88.535,0.05769976]
[1772070674097,3.48236354,88.578,88.531,11.29547841]
[1772070674305,3.48236354,88.578,88.532,0.05741108]
[1772070676602,3.48236354,88.576,88.532,0.05741108]
[1772070679103,3.48236354,88.574,88.532,0.05741108]
[1772070679486,3.48236354,88.574,88.541,0.05609084]
[1772070679682,3.48236354,88.574,88.551,0.05609084]
[1772070681188,3.48236354,88.572,88.521,0.28432314]
[1772070681388,3.48236354,88.559,88.51,3.92266058]
[1772070681701,3.48236354,88.549,88.51,3.92266058]
[1772070682502,3.48236354,88.549,88.505,39.54578836]
[1772070683112,3.48236354,88.547,88.505,28.24699169]
[1772070683603,3.48236354,88.539,88.505,28.24699169]
[1772070684206,3.48236354,88.539,88.505,28.30186381]
[1772070685701,3.48236354,88.539,88.506,0.05443419]
[1772070686708,3.48236354,88.539,88.505,28.24699169]
[1772070686709,3.48236354,88.549,88.511,0.05418985]
[1772070687094,3.48236354,88.548,88.511,0.05418985]
[1772070693412,3.48236354,88.568,88.521,0.05247433]
[1772070693614,3.48236354,88.559,88.521,0.05247433]
[1772070695797,3.48236354,88.557,88.515,39.54132067]
[1772070696000,3.48236354,88.549,88.516,0.05189096]
[1772070699115,3.48236354,88.557,88.516,0.05189096]
[1772070699305,3.48236354,88.557,88.521,0.05131241]
[1772070700619,3.48236354,88.597,88.541,0.05111972]
[1772070700803,3.48236354,88.589,88.551,0.05111972]
[1772070701497,3.48236354,88.587,88.551,0.05111972]
[1772070702198,28.21702276,88.599,88.551,0.05111972]
[1772070702513,3.48236354,88.619,88.571,0.05068052]
[1772070702713,3.48236354,88.619,88.581,0.05068052]
[1772070703524,3.48236354,88.619,88.572,0.05043661]
[1772070703703,3.48236354,88.617,88.573,0.05043661]
[1772070704917,3.48236354,88.617,88.58,3.92266058]
[1772070705709,3.48236354,88.615,88.579,0.05001111]
[1772070705915,3.48236354,88.615,88.571,0.05001111]
[1772070706509,3.48236354,88.609,88.571,11.34038832]
[1772070706808,3.48236354,88.629,88.581,0.04980094]
[1772070708430,3.48236354,88.627,88.582,0.04939422]
[1772070708921,3.48236354,88.627,88.59,3.9720548]
[1772070709109,3.48236354,88.627,88.591,0.04939422]
[1772070709827,3.48236354,88.627,88.582,0.04923919]
[1772070710415,3.48236354,88.625,88.59,3.92266058]
[1772070714327,3.48236354,88.623,88.591,11.28782833]
[1772070714909,3.48236354,88.623,88.592,0.04830313]
[1772070715429,3.48236354,88.623,88.591,11.3359616]
[1772070715814,3.48236354,88.623,88.591,11.28782833]
[1772070716452,3.50075048,88.599,88.534,0.04721978]
[1772070716607,3.50075048,88.579,88.541,0.04721978]
[1772070717309,3.50075048,88.579,88.54,3.92266058]
[1772070717310,3.50075048,88.588,88.551,0.04677776]
[1772070718416,3.50075048,88.588,88.551,11.29292723]
[1772070718621,3.50075048,88.588,88.552,0.04633398]
[1772070719237,3.50075048,88.586,88.54,3.92266058]
[1772070719538,3.50075048,88.586,88.541,11.29420268]
[1772070720824,3.50075048,88.579,88.541,11.29420268]
[1772070722939,3.50075048,88.577,88.541,11.29420268]
[1772070723320,3.50075048,88.577,88.541,11.33838713]
[1772070723525,3.50075048,88.577,88.542,0.04418445]
[1772070724429,3.50075048,88.577,88.542,0.04377243]
[1772070725944,14.78947663,88.584,88.551,0.04337145]
[1772070726130,3.50075048,88.583,88.551,0.04337145]
[1772070726955,3.50075048,88.583,88.542,0.04296453]
[1772070728947,3.50075048,88.581,88.542,0.04296453]
[1772070729638,3.50075048,88.581,88.551,0.04179846]
[1772070731256,11.28923007,88.58,88.551,0.04179846]
[1772070731455,3.50075048,88.569,88.522,0.04100496]
[1772070731754,3.50075048,88.559,88.522,0.04100496]
[1772070732451,3.50075048,88.579,88.531,0.04064356]
[1772070732961,3.50075048,88.579,88.54,3.96330414]
[1772070733649,3.50075048,88.577,88.541,11.29420268]
[1772070733946,3.50075048,88.577,88.541,11.33446865]
[1772070734854,3.50075048,88.577,88.542,0.0399025]
[1772070736550,3.50075048,88.577,88.55,3.92266058]
[1772070736849,3.50075048,88.577,88.551,0.03922764]
[1772070741060,3.50075048,88.575,88.541,0.03781152]
[1772070741632,3.50075048,88.569,88.525,39.53685398]
[1772070741842,3.50075048,88.569,88.53,3.92137827]
[1772070742468,3.50075048,88.569,88.531,0.03714915]
[1772070743836,3.50075048,88.569,88.511,62.2]
[1772070743837,3.50075048,88.559,88.51,3.95818148]
[1772070744060,3.50075048,88.539,88.5,4.12137827]
[1772070744362,3.50075048,88.539,88.501,11.29930735]
[1772070744935,3.50075048,88.539,88.5,0.2]
[1772070745355,3.50075048,88.539,88.501,11.29930735]
[1772070746460,3.48236354,88.537,88.501,11.29930735]
[1772070747060,3.48236354,88.537,88.502,0.03523102]
[1772070747262,3.48236354,88.537,88.511,0.03523102]
[1772070747965,3.48236354,88.548,88.52,3.92137827]
[1772070748143,3.48236354,88.548,88.521,0.03491734]
[1772070748549,3.48236354,88.548,88.521,11.33167178]
[1772070748752,3.48236354,88.548,88.521,11.29675444]
[1772070748944,3.92137827,88.56,88.52,3.92137827]
[1772070748945,3.48236354,88.546,88.52,3.92137827]
[1772070749149,3.48236354,88.546,88.517,11.29722382]
[1772070749350,3.48236354,88.546,88.52,3.92137827]
[1772070749553,3.38236354,88.529,88.46,0.2]
[1772070749772,3.38236354,88.499,88.465,0.23461258]
[1772070749965,3.38236354,88.499,88.44,4.12137827]
[1772070749966,3.28236354,88.479,88.44,0.2]
[1772070750146,3.28236354,88.459,88.44,0.2]
[1772070750746,3.28236354,88.457,88.44,0.2]
[1772070752367,11.30083965,88.489,88.45,3.92137827]
[1772070752873,39.55293878,88.489,88.45,3.92137827]
[1772070753257,10.53220481,88.46,88.43,0.2]
[1772070754262,3.38920397,88.459,88.411,11.31072428]
[1772070754486,3.38920397,88.459,88.415,11.31026838]
[1772070754873,3.38920397,88.459,88.419,11.30974231]
[1772070755259,3.38920397,88.457,88.414,11.31035968]
[1772070755459,3.38920397,88.457,88.41,10.73220481]
[1772070755460,3.38920397,88.457,88.42,10.73220481]
[1772070755661,3.38920397,88.457,88.42,22.04183728]
[1772070756968,3.38920397,88.457,88.42,0.2]
[1772070757161,11.30480001,88.458,88.42,0.2]
[1772070757162,3.38920397,88.447,88.42,0.2]
[1772070758366,3.38920397,88.445,88.42,0.2]
[1772070758863,3.38920397,88.445,88.42,10.73220481]
[1772070759069,3.38920397,88.445,88.42,0.2]
[1772070760591,3.38920397,88.443,88.42,0.2]
[1772070761249,3.38920397,88.459,88.421,3.38005506]
[1772070761573,3.38920397,88.523,88.45,10.53220481]
[1772070761776,3.38920397,88.489,88.45,10.53220481]
[1772070762002,3.38920397,88.479,88.44,10.53220481]
[1772070763352,3.69383402,88.515,88.42,39.78379396]
[1772070763353,3.38920397,88.469,88.43,10.53220481]
[1772070763764,3.38920397,88.469,88.441,3.38005506]
[1772070763959,3.38920397,88.477,88.441,3.38005506]
[1772070764179,3.38920397,88.477,88.45,10.53220481]
[1772070764580,11.30224462,88.478,88.451,3.38005506]
[1772070764803,11.30163706,88.483,88.451,3.38005506]
[1772070765086,3.38920397,88.482,88.451,3.38005506]
[1772070765481,3.38920397,88.48,88.451,3.38005506]
[1772070765685,3.38920397,88.48,88.451,14.68573929]
[1772070765900,3.38920397,88.48,88.451,3.38005506]
[1772070766385,3.38920397,88.48,88.451,14.68563722]
[1772070772288,3.38920397,88.48,88.452,3.38005506]
[1772070773888,3.38920397,88.478,88.452,3.38005506]
[1772070774075,3.38920397,88.478,88.441,3.38005506]
[1772070774597,3.38920397,88.476,88.442,14.68685305]
[1772070774784,3.38920397,88.476,88.44,10.53220481]
[1772070774973,3.38920397,88.476,88.437,11.30740871]
[1772070775866,3.38920397,88.476,88.44,3.93160728]
[1772070776070,3.43604162,88.481,88.451,3.30606957]
[1772070776294,3.43604162,88.481,88.441,3.30606957]
[1772070776594,3.43604162,88.479,88.44,3.93160728]
[1772070776889,3.43604162,88.477,88.441,11.30697301]
[1772070778489,3.43604162,88.475,88.436,11.30761228]
[1772070778990,3.43604162,88.475,88.436,14.61368185]
[1772070780571,3.43604162,88.473,88.437,3.30606957]
[1772070781594,3.43604162,88.473,88.421,62.2]
[1772070781595,3.43604162,88.469,88.425,14.61508001]
[1772070781797,3.43604162,88.459,88.426,3.30606957]
[1772070781995,3.43604162,88.459,88.431,3.30606957]
[1772070781996,1.869062,88.451,88.431,3.30606957]
[1772070782593,3.43604162,88.475,88.44,3.93160728]
[1772070782796,3.43604162,88.483,88.451,2.32203488]
[1772070782976,3.43604162,88.481,88.451,2.32203488]
[1772070783177,3.43604162,88.481,88.42,0.2]
[1772070783178,3.43604162,88.469,88.431,11.30825163]
[1772070783596,3.43604162,88.469,88.431,13.63372847]
[1772070783900,3.43604162,88.469,88.43,3.93160728]
[1772070784203,3.43604162,88.469,88.431,13.63708516]
[1772070784527,3.43604162,88.469,88.431,11.30825163]
[1772070784797,3.43604162,88.467,88.431,13.63708516]
[1772070784994,3.43604162,88.488,88.451,2.33220715]
[1772070785186,3.43604162,88.488,88.461,2.33220715]
[1772070786193,3.43604162,88.518,88.481,2.33549678]
[1772070786494,3.43604162,88.518,88.491,2.33549678]
[1772070787000,3.43604162,88.518,88.492,11.30045653]
[1772070787791,3.43604162,88.518,88.492,13.63922666]
[1772070788573,3.43604162,88.518,88.494,13.64215031]
[1772070789004,3.43604162,88.518,88.5,3.93160728]
[1772070790477,11.29330984,88.548,88.511,2.34820745]
[1772070790703,3.43604162,88.547,88.511,2.34820745]
[1772070791014,3.43604162,88.547,88.52,3.93160728]
[1772070792406,3.43604162,88.547,88.51,3.93160728]